[Event "Nové Hrady - Open"]
[Site "Nové Hrady, Czech Republic"]
[Date "2023.08.17"]
[Round "5.6"]
[White "Mošnička, Jan"]
[Black "Junek, Petr"]
[Result "1-0"]
[TimeControl "2x90min+30s"]
[WhiteFideId "329398"]
[BlackFideId "23739282"]
[WhiteElo "1784"]
[BlackElo "1554"]

1. Nf3 {[%clk 01:30:31]} {[%emt 00:00:29]} d5 {[%clk 01:30:27]} {[%emt
00:00:34]} 2. b3 {[%clk 01:30:22]} {[%emt 00:00:38]} c5 {[%clk 01:27:32]}
{[%emt 00:03:26]} 3. e3 {[%clk 01:30:29]} {[%emt 00:00:22]} Nc6 {[%clk
01:27:50]} {[%emt 00:00:12]} 4. Bb2 {[%clk 01:30:28]} {[%emt 00:00:31]} Bg4
{[%clk 01:27:37]} {[%emt 00:00:44]} 5. Be2 {[%clk 01:30:49]} {[%emt 00:00:09]}
Nf6 {[%clk 01:27:31]} {[%emt 00:00:36]} 6. d4 {[%clk 01:27:40]} {[%emt
00:03:38]} e6 {[%clk 01:27:07]} {[%emt 00:00:55]} 7. O-O {[%clk 01:27:59]}
{[%emt 00:00:10]} Bd6 {[%clk 01:25:18]} {[%emt 00:02:20]} 8. Nbd2 {[%clk
01:21:53]} {[%emt 00:06:35]} Qc7 {[%clk 01:25:01]} {[%emt 00:00:48]} 9. h3
{[%clk 01:21:54]} {[%emt 00:00:29]} Bh5 {[%clk 01:24:30]} {[%emt 00:01:00]} 10.
c4 {[%clk 01:20:51]} {[%emt 00:01:33]} Bg6 {[%clk 01:22:37]} {[%emt 00:02:23]}
11. Nh4 {[%clk 01:20:02]} {[%emt 00:01:19]} Be4 {[%clk 01:19:58]} {[%emt
00:03:09]} 12. Nhf3 {[%clk 01:14:13]} {[%emt 00:06:20]} O-O-O {[%clk 01:06:35]}
{[%emt 00:13:53]} 13. Nxe4 {[%clk 01:10:19]} {[%emt 00:04:23]} Nxe4 {[%clk
01:06:38]} {[%emt 00:00:28]} 14. Qc1 {[%clk 01:08:28]} {[%emt 00:02:19]} Rhg8
{[%clk 01:03:52]} {[%emt 00:03:18]} 15. cxd5 {[%clk 01:07:16]} {[%emt
00:01:41]} exd5 {[%clk 01:03:51]} {[%emt 00:00:32]} 16. Rd1 {[%clk 01:04:15]}
{[%emt 00:03:29]} f5 {[%clk 00:50:08]} {[%emt 00:14:14]} 17. dxc5 {[%clk
01:01:10]} {[%emt 00:03:35]} Bxc5 {[%clk 00:48:24]} {[%emt 00:02:14]} 18. Nd4
{[%clk 00:55:49]} {[%emt 00:05:51]} Nxd4 {[%clk 00:26:44]} {[%emt 00:22:10]} 19.
Bxd4 {[%clk 00:55:30]} {[%emt 00:00:49]} b6 {[%clk 00:23:22]} {[%emt 00:03:52]}
20. a3 {[%clk 00:53:10]} {[%emt 00:02:50]} Bd6 {[%clk 00:22:17]} {[%emt
00:01:35]} 21. Qxc7+ {[%clk 00:52:45]} {[%emt 00:00:55]} Kxc7 {[%clk 00:21:54]}
{[%emt 00:00:53]} 22. b4 {[%clk 00:47:22]} {[%emt 00:05:54]} Kd7 {[%clk
00:20:30]} {[%emt 00:01:53]} 23. Ba6 {[%clk 00:43:23]} {[%emt 00:04:26]} Ke6
{[%clk 00:20:12]} {[%emt 00:00:51]} 24. Rac1 {[%clk 00:43:23]} {[%emt
00:00:30]} g6 {[%clk 00:19:53]} {[%emt 00:00:50]} 25. Kf1 {[%clk 00:38:32]}
{[%emt 00:05:20]} f4 {[%clk 00:19:02]} {[%emt 00:01:21]} 26. Ke2 {[%clk
00:35:11]} {[%emt 00:03:51]} fxe3 {[%clk 00:18:57]} {[%emt 00:00:35]} 27. Bxe3
{[%clk 00:33:05]} {[%emt 00:02:36]} Be5 {[%clk 00:18:34]} {[%emt 00:00:53]} 28.
Bd4 {[%clk 00:33:00]} {[%emt 00:00:35]} Bxd4 {[%clk 00:18:38]} {[%emt
00:00:26]} 29. Rxd4 {[%clk 00:33:17]} {[%emt 00:00:13]} Rgf8 {[%clk 00:18:37]}
{[%emt 00:00:31]} 30. f3 {[%clk 00:32:27]} {[%emt 00:01:19]} Ng3+ {[%clk
00:19:01]} {[%emt 00:00:07]} 31. Kf2 {[%clk 00:29:19]} {[%emt 00:03:36]} Nf5
{[%clk 00:19:11]} {[%emt 00:00:23]} 32. Rd2 {[%clk 00:28:45]} {[%emt 00:01:02]}
Ke5 {[%clk 00:18:39]} {[%emt 00:01:04]} 33. Rc7 {[%clk 00:27:32]} {[%emt
00:01:41]} h5 {[%clk 00:16:27]} {[%emt 00:02:43]} 34. Rxa7 {[%clk 00:26:19]}
{[%emt 00:01:43]} Ra8 {[%clk 00:16:45]} {[%emt 00:00:12]} 35. Rxa8 {[%clk
00:26:08]} {[%emt 00:00:41]} Rxa8 {[%clk 00:17:08]} {[%emt 00:00:07]} 36. b5
{[%clk 00:25:40]} {[%emt 00:00:58]} d4 {[%clk 00:17:05]} {[%emt 00:00:33]} 37.
Ke2 {[%clk 00:25:03]} {[%emt 00:01:02]} Ne3 {[%clk 00:13:59]} {[%emt 00:03:41]}
38. Kd3 {[%clk 00:25:09]} {[%emt 00:00:23]} Rd8 {[%clk 00:13:43]} {[%emt
00:00:47]} 39. Bb7 {[%clk 00:24:29]} {[%emt 00:01:10]} Rd7 {[%clk 00:13:55]}
{[%emt 00:00:19]} 40. Bc6 {[%clk 00:24:16]} {[%emt 00:00:42]} Ra7 {[%clk
00:13:54]} {[%emt 00:00:32]} 41. Ra2 {[%clk 00:23:56]} {[%emt 00:00:49]} g5
{[%clk 00:11:40]} {[%emt 00:02:43]} 42. g3 {[%clk 00:20:12]} {[%emt 00:04:14]}
Ra4 {[%clk 00:10:56]} {[%emt 00:01:15]} 43. Be8 {[%clk 00:18:51]} {[%emt
00:01:51]} h4 {[%clk 00:11:12]} {[%emt 00:00:14]} 44. gxh4 {[%clk 00:18:58]}
{[%emt 00:00:23]} gxh4 {[%emt 00:00:12]} 45. Bf7 {[%clk 00:18:53]} {[%emt
00:00:33]} Nf5 {[%clk 00:09:14]} {[%emt 00:02:48]} 46. Bb3 {[%clk 00:18:37]}
{[%emt 00:00:46]} Ra7 {[%clk 00:09:39]} {[%emt 00:00:06]} 47. a4 {[%clk
00:17:16]} {[%emt 00:01:50]} Rg7 {[%clk 00:09:54]} {[%emt 00:00:16]} 48. Re2+
{[%clk 00:16:50]} {[%emt 00:00:55]} Ne3 {[%clk 00:09:03]} {[%emt 00:01:20]} 49.
f4+ {[%clk 00:16:37]} {[%emt 00:00:44]} Kxf4 {[%clk 00:08:47]} {[%emt
00:00:46]} 50. Kxd4 {[%clk 00:16:44]} {[%emt 00:00:23]} Rg3 {[%clk 00:08:10]}
{[%emt 00:01:07]} 51. Be6 {[%clk 00:16:24]} {[%emt 00:00:49]} Nf5+ {[%clk
00:07:48]} {[%emt 00:00:53]} 52. Bxf5 {[%clk 00:10:02]} {[%emt 00:06:52]} Kxf5
{[%clk 00:08:10]} {[%emt 00:00:08]} 53. Kd5 {[%clk 00:09:22]} {[%emt 00:01:08]}
Ra3 {[%clk 00:06:12]} {[%emt 00:02:30]} 54. Re4 {[%clk 00:08:12]} {[%emt
00:01:38]} Rxh3 {[%clk 00:05:14]} {[%emt 00:01:29]} 55. Rc4 {[%clk 00:08:12]}
{[%emt 00:00:31]} Rd3+ {[%clk 00:04:09]} {[%emt 00:01:35]} 56. Kc6 {[%clk
00:08:27]} {[%emt 00:00:16]} h3 {[%clk 00:04:07]} {[%emt 00:00:31]} 57. Kxb6
{[%clk 00:07:21]} {[%emt 00:01:37]} Rd6+ {[%clk 00:04:27]} {[%emt 00:00:10]} 58.
Kc7 {[%clk 00:07:23]} {[%emt 00:00:24]} Rh6 {[%clk 00:04:41]} {[%emt 00:00:19]}
59. Rc1 {[%clk 00:05:05]} {[%emt 00:02:49]} Rh7+ {[%clk 00:04:55]} {[%emt
00:00:16]} 60. Kc8 {[%clk 00:05:07]} {[%emt 00:00:24]} Rh8+ {[%clk 00:05:13]}
{[%emt 00:00:16]} 61. Kc7 {[%clk 00:05:28]} {[%emt 00:00:09]} Rh7+ {[%clk
00:05:29]} {[%emt 00:00:14]} 62. Kc6 {[%clk 00:05:39]} {[%emt 00:00:18]} Rh6+
{[%clk 00:04:15]} {[%emt 00:01:45]} 63. Kb7 {[%clk 00:05:50]} {[%emt 00:00:17]}
Rh7+ {[%clk 00:04:06]} {[%emt 00:00:41]} 64. Ka6 {[%clk 00:06:11]} {[%emt
00:00:07]} Rh6+ {[%clk 00:04:33]} {[%emt 00:00:04]} 65. b6 {[%clk 00:06:31]}
{[%emt 00:00:11]} h2 {[%clk 00:04:46]} {[%emt 00:00:17]} 66. Rh1 {[%clk
00:06:36]} {[%emt 00:00:24]} Kg4 {[%clk 00:05:04]} {[%emt 00:00:12]} 67. Ka7
{[%clk 00:06:51]} {[%emt 00:00:15]} Kg3 {[%clk 00:03:56]} {[%emt 00:01:39]} 68.
a5 {[%clk 00:06:20]} {[%emt 00:01:00]} Kg2 {[%clk 00:03:35]} {[%emt 00:00:51]}
69. Rxh2+ {[%emt 00:00:28]} Kxh2 {[%clk 00:03:45]} {[%emt 00:00:03]} 70. a6
{[%clk 00:06:46]} {[%emt 00:00:24]} Rh7+ {[%clk 00:04:04]} {[%emt 00:00:10]} 71.
b7 {[%emt 00:00:31]} Kg3 {[%clk 00:03:51]} {[%emt 00:00:19]} 72. Ka8 {[%clk
00:07:21]} {[%emt 00:00:17]} Rh8+ {[%emt 00:00:09]} 73. a7 {[%emt 00:00:35]}
1-0

[Event "Nové Hrady - Open"]
[Site "Nové Hrady, Czech Republic"]
[Date "2023.08.17"]
[Round "5.7"]
[White "Berkovec, Jakub"]
[Black "Steinbauer, Sebastián"]
[Result "0-1"]
[TimeControl "2x90min+30s"]
[WhiteFideId "23727080"]
[BlackFideId "399272"]
[WhiteElo "1288"]
[BlackElo "1782"]

1. e4 {[%clk 01:30:59]} e5 {[%clk 01:30:55]} {[%emt 00:00:06]} 2. Nf3 {[%clk
01:30:57]} {[%emt 00:00:31]} Nf6 {[%clk 01:31:05]} {[%emt 00:00:20]} 3. Nxe5
{[%clk 01:30:26]} {[%emt 00:01:01]} d6 {[%clk 01:31:27]} {[%emt 00:00:08]} 4.
Nf3 {[%clk 01:29:33]} {[%emt 00:01:23]} Nxe4 {[%clk 01:31:54]} {[%emt
00:00:03]} 5. Nc3 {[%clk 01:28:43]} {[%emt 00:01:21]} Nxc3 {[%clk 01:32:07]}
{[%emt 00:00:16]} 6. dxc3 {[%clk 01:28:15]} {[%emt 00:00:57]} Nc6 {[%clk
01:32:11]} {[%emt 00:00:27]} 7. Be3 {[%clk 01:27:41]} {[%emt 00:01:04]} Be7
{[%clk 01:31:52]} {[%emt 00:00:50]} 8. Qd2 {[%clk 01:27:15]} {[%emt 00:00:56]}
Bg4 {[%clk 01:30:40]} {[%emt 00:01:41]} 9. Be2 {[%clk 01:25:48]} {[%emt
00:01:56]} Qd7 {[%clk 01:30:21]} {[%emt 00:00:50]} 10. O-O-O {[%clk 01:24:40]}
{[%emt 00:01:37]} O-O {[%clk 01:30:21]} {[%emt 00:00:31]} 11. Nd4 {[%clk
01:23:33]} {[%emt 00:01:38]} Bxe2 {[%clk 01:30:40]} {[%emt 00:00:10]} 12. Qxe2
{[%clk 01:22:38]} {[%emt 00:01:30]} a5 {[%clk 01:29:51]} {[%emt 00:01:15]} 13.
h4 {[%clk 01:19:27]} {[%emt 00:03:39]} Rfe8 {[%clk 01:28:47]} {[%emt 00:01:36]}
14. Qd2 {[%clk 01:16:02]} {[%emt 00:03:54]} Ne5 {[%clk 01:28:51]} {[%emt
00:00:25]} 15. Bg5 {[%clk 01:07:19]} {[%emt 00:09:14]} f6 {[%clk 01:28:34]}
{[%emt 00:00:47]} 16. Bf4 {[%clk 01:06:36]} {[%emt 00:01:13]} c5 {[%clk
01:27:55]} {[%emt 00:01:09]} 17. Bxe5 {[%clk 01:04:37]} {[%emt 00:02:29]} dxe5
{[%clk 01:26:01]} {[%emt 00:02:24]} 18. Ne2 {[%clk 01:04:39]} {[%emt 00:00:28]}
Qa4 {[%clk 01:25:59]} {[%emt 00:00:32]} 19. Qd5+ {[%clk 01:01:33]} {[%emt
00:03:36]} Kf8 {[%clk 01:25:49]} {[%emt 00:00:40]} 20. Qb3 {[%clk 01:01:45]}
{[%emt 00:00:19]} Qe4 {[%clk 01:23:22]} {[%emt 00:02:56]} 21. Ng3 {[%clk
00:54:23]} {[%emt 00:07:52]} Qxg2 {[%clk 01:22:58]} {[%emt 00:00:54]} 22. Rhf1
{[%clk 00:52:49]} {[%emt 00:02:04]} Qc6 {[%clk 01:21:59]} {[%emt 00:01:30]} 23.
Nf5 {[%clk 00:51:04]} {[%emt 00:02:15]} c4 {[%clk 01:21:30]} {[%emt 00:00:58]}
24. Nxe7 {[%clk 00:50:35]} {[%emt 00:00:59]} Rxe7 {[%clk 01:21:27]} {[%emt
00:00:33]} 25. Qa3 {[%clk 00:50:50]} {[%emt 00:00:15]} Kf7 {[%clk 01:21:55]}
{[%emt 00:00:02]} 26. Qd6 {[%clk 00:48:03]} {[%emt 00:03:17]} Qe4 {[%clk
01:21:20]} {[%emt 00:01:04]} 27. Qd5+ {[%clk 00:46:14]} {[%emt 00:02:20]} Qxd5
{[%clk 01:20:34]} {[%emt 00:01:17]} 28. Rxd5 {[%clk 00:46:34]} {[%emt
00:00:09]} Rc7 {[%clk 01:20:33]} {[%emt 00:00:31]} 29. Rfd1 {[%clk 00:46:44]}
{[%emt 00:00:20]} Kg6 {[%clk 01:20:24]} {[%emt 00:00:38]} 30. Rd7 {[%clk
00:45:56]} {[%emt 00:01:19]} Rac8 {[%clk 01:20:39]} {[%emt 00:00:15]} 31. R1d5
{[%clk 00:46:12]} {[%emt 00:00:13]} b6 {[%clk 01:20:21]} {[%emt 00:00:49]} 32.
R7d6 {[%clk 00:45:38]} {[%emt 00:01:04]} Rc6 {[%clk 01:20:32]} {[%emt
00:00:19]} 33. Kd2 {[%clk 00:45:35]} {[%emt 00:00:33]} R8c7 {[%clk 01:20:27]}
{[%emt 00:00:35]} 34. Ke3 {[%clk 00:45:25]} {[%emt 00:00:40]} Rxd6 {[%clk
01:19:32]} {[%emt 00:01:25]} 35. Rxd6 {[%clk 00:45:42]} {[%emt 00:00:13]} Rb7
{[%clk 01:19:55]} {[%emt 00:00:06]} 36. Kf3 {[%clk 00:45:57]} {[%emt 00:00:16]}
Kf5 {[%clk 01:19:29]} {[%emt 00:00:56]} 37. Rd5 {[%clk 00:45:10]} {[%emt
00:01:18]} Ke6 {[%clk 01:19:03]} {[%emt 00:00:54]} 38. Rd1 {[%clk 00:44:27]}
{[%emt 00:01:14]} Rd7 {[%clk 01:19:20]} {[%emt 00:00:13]} 39. Rg1 {[%clk
00:44:16]} {[%emt 00:00:41]} g6 {[%clk 01:19:49]} 40. Ke2 {[%clk 00:44:29]}
{[%emt 00:00:18]} Kf5 {[%clk 01:19:49]} {[%emt 00:00:30]} 41. f3 {[%clk
00:43:44]} {[%emt 00:01:15]} g5 {[%clk 01:19:17]} {[%emt 00:01:02]} 42. Rg4
{[%clk 00:43:49]} {[%emt 00:00:24]} h5 {[%clk 01:19:25]} {[%emt 00:00:22]} 43.
Rxc4 {[%clk 00:43:28]} {[%emt 00:00:52]} Rd6 {[%clk 01:19:54]} 44. Re4 {[%clk
00:40:37]} {[%emt 00:03:22]} g4 {[%clk 01:20:02]} {[%emt 00:00:23]} 45. Rc4
{[%clk 00:34:21]} {[%emt 00:06:45]} g3 {[%clk 01:20:12]} {[%emt 00:00:19]} 46.
Rc8 {[%clk 00:34:26]} {[%emt 00:00:26]} Kf4 {[%clk 01:18:28]} {[%emt 00:02:14]}
47. Rg8 {[%clk 00:34:11]} {[%emt 00:00:45]} Re6 {[%clk 01:16:39]} {[%emt
00:02:20]} 48. Rc8 {[%clk 00:31:21]} {[%emt 00:03:20]} e4 {[%clk 01:15:30]}
{[%emt 00:01:38]} 49. Rc4 {[%clk 00:29:13]} {[%emt 00:02:37]} f5 {[%clk
01:15:58]} {[%emt 00:00:02]} 50. Rd4 {[%clk 00:25:29]} {[%emt 00:04:14]} Rg6
{[%clk 01:15:37]} {[%emt 00:00:51]} 51. Rd1 {[%clk 00:24:54]} {[%emt 00:01:05]}
exf3+ {[%clk 01:15:56]} {[%emt 00:00:11]} 52. Kf1 {[%clk 00:25:06]} {[%emt
00:00:19]} Kg4 {[%clk 01:16:06]} {[%emt 00:00:20]} 53. Rd4+ {[%clk 00:24:43]}
{[%emt 00:00:53]} f4 {[%clk 01:16:33]} {[%emt 00:00:02]} 54. Kg1 {[%clk
00:24:50]} {[%emt 00:00:22]} Re6 {[%clk 01:17:01]} {[%emt 00:00:03]} 55. Kf1
{[%clk 00:25:05]} {[%emt 00:00:16]} g2+ {[%clk 01:17:24]} {[%emt 00:00:06]} 56.
Kf2 {[%clk 00:25:21]} {[%emt 00:00:13]} Re2+ {[%clk 01:17:53]} {[%emt
00:00:03]} 57. Kg1 {[%clk 00:25:31]} {[%emt 00:00:20]} Kg3 {[%emt 00:00:34]}
0-1

[Event "Nové Hrady - Open"]
[Site "Nové Hrady, Czech Republic"]
[Date "2023.08.17"]
[Round "5.8"]
[White "Garabik, Marek"]
[Black "Mores, Antonín"]
[Result "1-0"]
[TimeControl "2x90min+30s"]
[WhiteFideId "23717742"]
[BlackFideId "23711485"]
[WhiteElo "1738"]
[BlackElo "1305"]

1. e4 {[%clk 01:30:48]} {[%emt 00:00:12]} c5 {[%clk 01:30:35]} {[%emt
00:00:26]} 2. Nc3 {[%clk 01:30:43]} {[%emt 00:00:35]} Nc6 {[%clk 01:30:40]}
{[%emt 00:00:25]} 3. Bb5 {[%clk 01:31:05]} {[%emt 00:00:06]} g6 {[%clk
01:30:37]} {[%emt 00:00:34]} 4. Bxc6 {[%clk 01:31:21]} {[%emt 00:00:14]} dxc6
{[%clk 01:30:26]} {[%emt 00:00:41]} 5. d3 {[%clk 01:31:37]} {[%emt 00:00:13]}
Bg7 {[%clk 01:30:06]} {[%emt 00:00:51]} 6. Be3 {[%clk 01:30:51]} {[%emt
00:01:16]} Qa5 {[%clk 01:28:27]} {[%emt 00:02:09]} 7. Qd2 {[%clk 01:29:37]}
{[%emt 00:01:44]} Nf6 {[%clk 01:26:36]} {[%emt 00:02:21]} 8. h3 {[%clk
01:29:41]} {[%emt 00:00:26]} Be6 {[%clk 01:26:08]} {[%emt 00:00:58]} 9. f4
{[%clk 01:27:06]} {[%emt 00:03:04]} O-O-O {[%clk 01:14:22]} {[%emt 00:12:18]}
10. Nf3 {[%clk 01:25:20]} {[%emt 00:02:15]} c4 {[%clk 01:08:43]} {[%emt
00:06:08]} 11. d4 {[%clk 01:25:43]} {[%emt 00:00:08]} h6 {[%clk 01:03:46]}
{[%emt 00:05:25]} 12. O-O {[%clk 01:24:57]} {[%emt 00:01:17]} Nh7 {[%clk
00:55:00]} {[%emt 00:09:17]} 13. Rad1 {[%clk 01:17:26]} {[%emt 00:08:01]} f6
{[%clk 00:46:46]} {[%emt 00:08:43]} 14. Qf2 {[%clk 01:16:15]} {[%emt 00:01:41]}
Rhg8 {[%clk 00:32:52]} {[%emt 00:14:25]} 15. Bd2 {[%clk 01:14:08]} {[%emt
00:02:38]} Qc7 {[%clk 00:29:04]} {[%emt 00:04:17]} 16. Be3 {[%clk 01:12:38]}
{[%emt 00:01:59]} g5 {[%clk 00:21:48]} {[%emt 00:07:47]} 17. f5 {[%clk
01:12:29]} {[%emt 00:00:39]} Bf7 {[%clk 00:21:38]} {[%emt 00:00:40]} 18. d5
{[%clk 01:12:25]} {[%emt 00:00:34]} cxd5 {[%clk 00:18:59]} {[%emt 00:03:09]} 19.
exd5 {[%clk 01:12:28]} {[%emt 00:00:26]} b6 {[%clk 00:17:51]} {[%emt 00:01:39]}
20. a4 {[%clk 01:07:45]} {[%emt 00:05:13]} g4 {[%clk 00:11:43]} {[%emt
00:06:38]} 21. hxg4 {[%clk 01:07:08]} {[%emt 00:01:06]} h5 {[%clk 00:12:03]}
{[%emt 00:00:11]} 22. Nb5 {[%clk 01:07:05]} {[%emt 00:00:34]} Qb7 {[%clk
00:10:14]} {[%emt 00:02:18]} 23. d6 {[%clk 01:07:00]} {[%emt 00:00:35]} hxg4
{[%clk 00:09:51]} {[%emt 00:00:53]} 24. dxe7 {[%clk 01:05:33]} {[%emt
00:01:57]} Qxe7 {[%clk 00:09:54]} {[%emt 00:00:28]} 25. Nfd4 {[%clk 01:05:00]}
{[%emt 00:01:02]} g3 {[%clk 00:07:20]} {[%emt 00:03:04]} 26. Qf3 {[%clk
01:03:44]} {[%emt 00:01:46]} Bd5 {[%clk 00:06:39]} {[%emt 00:01:11]} 27. Nc6
{[%clk 01:01:58]} {[%emt 00:02:16]} Bxc6 {[%clk 00:04:45]} {[%emt 00:02:24]} 28.
Qxc6+ {[%clk 01:02:26]} {[%emt 00:00:02]} Kb8 {[%clk 00:05:07]} {[%emt
00:00:08]} 29. Bf4+ {[%clk 01:02:54]} {[%emt 00:00:02]} 1-0

[Event "Nové Hrady - Open"]
[Site "Nové Hrady, Czech Republic"]
[Date "2023.08.17"]
[Round "5.9"]
[White "Voršilka, Jiří"]
[Black "Postl, František"]
[Result "1-0"]
[TimeControl "2x90min+30s"]
[WhiteFideId "365149"]
[WhiteElo "1556"]
[BlackElo "1180"]

1. c4 {[%clk 01:30:58]} c5 {[%clk 01:30:52]} {[%emt 00:00:09]} 2. Nc3 {[%clk
01:31:22]} {[%emt 00:00:06]} Nc6 {[%clk 01:31:17]} {[%emt 00:00:05]} 3. g3
{[%clk 01:31:46]} {[%emt 00:00:06]} g6 {[%clk 01:31:34]} {[%emt 00:00:13]} 4.
Bg2 {[%clk 01:32:09]} {[%emt 00:00:07]} Bg7 {[%clk 01:31:58]} {[%emt 00:00:07]}
5. e4 {[%clk 01:32:25]} {[%emt 00:00:13]} d6 {[%clk 01:32:02]} {[%emt
00:00:26]} 6. Nge2 {[%clk 01:32:40]} {[%emt 00:00:14]} Nf6 {[%clk 01:32:09]}
{[%emt 00:00:24]} 7. O-O {[%clk 01:32:52]} {[%emt 00:00:18]} O-O {[%clk
01:31:56]} {[%emt 00:00:43]} 8. h3 {[%clk 01:33:00]} {[%emt 00:00:21]} Be6
{[%clk 01:24:33]} {[%emt 00:07:54]} 9. d3 {[%clk 01:33:01]} {[%emt 00:00:28]}
Qd7 {[%clk 01:22:49]} {[%emt 00:02:14]} 10. Kh2 {[%clk 01:33:08]} {[%emt
00:00:23]} Ne5 {[%clk 01:22:18]} {[%emt 00:01:02]} 11. f4 {[%clk 01:32:43]}
{[%emt 00:00:55]} Nc6 {[%clk 01:19:29]} {[%emt 00:03:19]} 12. Be3 {[%clk
01:32:22]} {[%emt 00:00:50]} Ne8 {[%clk 01:16:53]} {[%emt 00:03:07]} 13. a3
{[%clk 01:32:15]} {[%emt 00:00:36]} f5 {[%clk 01:16:19]} {[%emt 00:01:05]} 14.
Rb1 {[%clk 01:31:35]} {[%emt 00:01:11]} Nf6 {[%clk 01:11:00]} {[%emt 00:05:48]}
15. Nd5 {[%clk 01:31:03]} {[%emt 00:01:01]} Nh5 {[%clk 01:04:33]} {[%emt
00:06:58]} 16. b4 {[%clk 01:30:36]} {[%emt 00:00:57]} Nd4 {[%clk 01:00:49]}
{[%emt 00:04:13]} 17. Bxd4 {[%clk 01:29:42]} {[%emt 00:01:25]} Bxd4 {[%clk
01:00:32]} {[%emt 00:00:48]} 18. Nxd4 {[%clk 01:29:46]} {[%emt 00:00:25]} cxd4
{[%clk 00:59:54]} {[%emt 00:01:08]} 19. exf5 {[%clk 01:29:43]} {[%emt
00:00:32]} Bf7 {[%clk 00:56:59]} {[%emt 00:03:26]} 20. Qg4 {[%clk 01:28:38]}
{[%emt 00:01:34]} Nf6 {[%clk 00:56:11]} {[%emt 00:01:19]} 21. Nxf6+ {[%clk
01:28:54]} {[%emt 00:00:14]} exf6 {[%clk 00:56:27]} {[%emt 00:00:14]} 22. fxg6
{[%clk 01:29:03]} {[%emt 00:00:20]} Qxg4 {[%clk 00:55:57]} {[%emt 00:01:02]} 23.
gxf7+ {[%clk 01:29:25]} {[%emt 00:00:07]} Rxf7 {[%clk 00:52:21]} {[%emt
00:04:07]} 24. hxg4 {[%clk 01:29:47]} {[%emt 00:00:07]} 1-0